Cogmind - Beta 16 @@@ ROGUE MODE // 2026.02.03 @ 22:01:21 Player: eb Result: Destroyed by P-60 Hacker with Shock Rifle Performance ------------- Evolutions (0) 0 Regions Visited (3) 600 Robots Destroyed (21) 105 Value Destroyed (650) 650 Prototype IDs (3) 60 Alien Tech Used (0) 0 Bonus (0) 0 TOTAL SCORE: 1415 Bonus ------- None Cogmind --------- Core Integrity 0/250 Matter 300/300 Energy 78/100 System Corruption 1% Temperature Cool (0) Movement Treading (160) Location -8/Recycling Parts ------- > --- POWER (1) -------- (None) > --- PROPULSION (2) --- Light Treads Spiked Treads > --- UTILITY (2) ------ Small Storage Unit Makeshift System Shield > --- WEAPON (2) ------- Powered Cannon > --- INVENTORY (8) ---- Light Treads Heat Sink Subdweller Optics Riot Gun Subdweller Beam Cannon Subdweller Machine Gun Battle Cannon Shock Bomb Launcher Peak State ------------ > --- POWER ------------ Subdweller Power Source > --- PROPULSION ------- Subdweller Monowheel Subdweller Monowheel > --- UTILITY ---------- Small Storage Unit Makeshift System Shield > --- WEAPON ----------- Powered Cannon > --- INVENTORY -------- Spiked Treads Subdweller Optics Riot Gun Subdweller Beam Cannon Subdweller Machine Gun Battle Cannon [Rating: 26] Favorites ----------- Power Subdweller Power Source Engine Subdweller Power Source Propulsion Light Treads Treads Light Treads Wheel Subdweller Monowheel Utility Small Storage Unit Device Subdweller Optics Storage Small Storage Unit Processor Machine Analyzer Hackware Makeshift System Shield Protection Scrap Shield Weapon Battle Cannon Energy Gun Small Laser Energy Cannon Subdweller Beam Cannon Ballistic Gun Subdweller Machine Gun Ballistic Cannon Battle Cannon Build | -11 -10 -10 -8 ------- Run | Yrd Mat Sub Rec Slots Evolved . | . . . . Power . | . . . . Propulsion . | . . . . Utility . | . . . . Weapon . | . . . . Parts Attached 27 | 6 . 18 3 Power 5 | 1 . 3 1 Engine 5 | 1 . 3 1 Core . | . . . . Reactor . | . . . . Propulsion 8 | 2 . 4 2 Treads 4 | 2 . . 2 Leg . | . . . . Wheel 4 | . . 4 . Hover . | . . . . Flight . | . . . . Utility 5 | 1 . 4 . Device 1 | . . 1 . Storage 1 | 1 . . . Processor 1 | . . 1 . Hackware 1 | . . 1 . Protection 1 | . . 1 . Artifact . | . . . . Weapon 9 | 2 . 7 . Energy Gun 2 | . . 2 . Energy Cannon 2 | . . 2 . Ballistic Gun 4 | 2 . 2 . Ballistic Cannon 1 | . . 1 . Launcher . | . . . . Special Weapon . | . . . . Impact Weapon . | . . . . Slashing Weapon . | . . . . Piercing Weapon . | . . . . Special Melee Weapon . | . . . . Unidentified Prototypes 1 | . . 1 . Parts Lost 6 | . . 5 1 Power 3 | . . 2 1 Propulsion 1 | . . 1 . Utility 1 | . . 1 . Weapon 1 | . . 1 . Highest Loss Streak 2 | . . 2 1 To Critical Strikes . | . . . . Average Backups 5 | 2 4 5 7 Power . | . 1 . . Propulsion 2 | 1 2 2 1 Utility . | . . . 1 Weapon 2 | . 1 1 4 Tool/Special . | . . . . Unused Backups 12 | . . 6 6 Power 3 | . . 3 . Propulsion 3 | . . 2 1 Utility 2 | . . . 2 Weapon 4 | . . 1 3 Tool/Special . | . . . . Average Slot Usage (%) 85 | . 85 88 74 Engine 10 | . 14 9 11 Treads 15 | . 28 11 23 Wheel 12 | . . 16 1 Device 3 | . . 4 . Storage 11 | . 14 10 12 Processor 1 | . . 1 . Hackware 3 | . . . 12 Protection 2 | . . 3 . Energy Cannon 8 | . . 7 12 Ballistic Gun 6 | . 28 7 . Ballistic Cannon 8 | . . 12 . Peak Build Rating 26 | 6 6 26 26 Average Rating 14 | 4 6 12 24 On Entrance 9 | . 6 6 26 Avg Prop Armor Cover (%) . | . . . . Naked Turns . | . . . . Heaviest Build 34 | 13 13 34 19 Greatest Support 40 | 40 40 40 40 Greatest Overweight (x) . | . . . . Average Overweight (x) . | . . . . Largest Inventory Capacity 8 | 8 8 8 8 Average Capacity 7 | 7 8 7 8 Most Carried 8 | 4 4 8 8 Average Carried 5 | 2 4 5 7 Final Capacity 8 | 8 8 8 8 Final Carried 8 | 4 4 6 8 Class Distribution -------------------- 79% | Mutant 17% | Subdweller-Mutant 3% | Scavenger-Mutant Dominant Class ---------------- Mutant | -10/Materials Mutant | -10/Subcaves Mutant | -8/Recycling Resources | -11 -10 -10 -8 ----------- Run | Yrd Mat Sub Rec Matter Collected 747 | 233 . 453 61 Remotely . | . . . . Salvage Created 729 | . . 517 212 Parts 41 | . . 33 8 Haulers Intercepted . | . . . . Recyclers Shooed 1 | . . . 1 Parts Field Recycled . | . . . . Retrieved Matter . | . . . . Parts Self-Destructed 12 | . . 12 . Prevented . | . . . . Parts Restored . | . . . . Kills | -11 -10 -10 -8 ------- Run | Yrd Mat Sub Rec Combat Hostiles Destroyed 17 | . . 15 2 Melee 1 | . . . 1 Guns 9 | . . 9 . Cannons 7 | . . 6 1 Classes Destroyed 6 | . . 5 1 Recycler 2 | . . . 2 Turret 2 | . . 2 . Swarmer 4 | . . 4 . Grunt 3 | . . 2 1 Sentry 2 | . . 1 1 Subdweller 8 | . . 8 . Best Kill Streak 4 | . . 4 1 Combat Bots Only 4 | . . 4 1 Max Kills in Single Turn 2 | . . 2 1 Gunslinging 1 | . . 1 . Exploded . | . . . . Melee 1 | . . . 1 Uniques/NPCs Destroyed . | . . . . Combat | -11 -10 -10 -8 -------- Run | Yrd Mat Sub Rec Hostile Shots Fired 156 | . . 120 36 Missed 45 | . . 36 9 Hits 111 | . . 84 27 Projectile 111 | . . 84 27 Critical Strikes 3 | . . 2 1 Damage Taken 1643 | . . 1237 406 Core 257 | . . 210 47 Absorbed by Shields . | . . . . Core Remaining (%) 100 | 100 . . . Volleys Fired 64 | . . 56 8 Largest 2 | . . 2 1 Hottest 113 | . . 113 40 Shots Fired 119 | . . 111 8 Gun 65 | . . 65 . Cannon 54 | . . 46 8 Launcher . | . . . . Special . | . . . . Kinetic 90 | . . 90 . Thermal 29 | . . 21 8 Explosive . | . . . . Electromagnetic . | . . . . Robot Hit Streak 27 | . . 27 4 Robot Miss Streak 3 | . . 2 3 Penetration Max . | . . . . Secondary Targets 2 | . . 2 . Max Gunslinging Chain 1 | . . 1 . Shots Hit Robots 84 | . . 80 4 Core Hits 30 | . . 27 3 Critical Kills . | . . . . Critical Parts Destroyed . | . . . . Critical Strikes 1 | . . 1 . Blast 1 | . . 1 . Melee Attacks . | . . . . Impact . | . . . . Slashing . | . . . . Piercing . | . . . . Sneak Attacks . | . . . . Combat Hostiles . | . . . . Follow-up Attacks . | . . . . Damage Inflicted 1634 | . . 1415 219 Guns 720 | . . 720 . Cannons 901 | . . 695 206 Explosions . | . . . . Melee . | . . . . Ramming 13 | . . . 13 Kinetic 1056 | . . 1056 . Thermal 565 | . . 359 206 Explosive . | . . . . Electromagnetic . | . . . . Impact . | . . . . Slashing . | . . . . Piercing . | . . . . Highest Corruption 1 | . . . 1 Average Corruption 1 | . . . 1 Corruption Purged . | . . . . Corruption Blocked . | . . . . Overload Shots . | . . . . Overflow Damage 5 | . . . 5 Projectiles 5 | . . . 5 Explosions . | . . . . Melee . | . . . . Knockbacks 7 | . . 7 . Impact . | . . . . Kinetic 7 | . . 7 . Secondary . | . . . . Self-Inflicted Damage . | . . . . Shots . | . . . . Rammed 10 | . . . 10 Targets Rammed 12 | . . . 12 Kicked . | . . . . Crushed 2 | . . . 2 Highest Temperature 56 | . . 16 56 Average Temperature 17 | . . 5 26 Received Heat Transfer 321 | . . 249 72 Siege Activations . | . . . . Martial Activations . | . . . . Shielding Activations . | . . . . Robots Disrupted . | . . . . Combat Hostiles . | . . . . Robots Corrupted . | . . . . Combat Hostiles . | . . . . Parts Fried . | . . . . Impact Corruptions . | . . . . Robots Melted . | . . . . Combat Hostiles . | . . . . Parts Melted . | . . . . Heat Transferred 519 | . . 519 . Parts Sabotaged . | . . . . Parts Stolen . | . . . . Parts Stripped . | . . . . Power Chain Reactions . | . . . . Alert | -11 -10 -10 -8 ------- Run | Yrd Mat Sub Rec Maximum Alert Level . | . . . . Low Security (%) 100 | 100 100 . 100 Level 1 . | . . . . Level 2 . | . . . . Level 3 . | . . . . Level 4 . | . . . . Level 5 . | . . . . High Security . | . . . . Max Security . | . . . . Peak Influence 21 | . . . 21 Initial . | . . . . Average 1 | . . . 1 Influence Increases 311 | . . 250 61 Destroy 0b10 Robot/C 220 | . . 180 40 Destroy 0b10 Robot/NC 10 | . . . 10 Destroy Leader 10 | . . 10 . Successful Hack 7 | . . . 7 Destroy Structure 4 | . . . 4 Lose Combat Pursuer 60 | . . 60 . Influence Decreases 290 | . . 250 40 Time Decay 269 | . . 230 39 Lost Part 21 | . . 20 1 Squads Dispatched . | . . . . Investigation . | . . . . Extermination . | . . . . Reinforcement . | . . . . Assault . | . . . . Garrison . | . . . . Intercept . | . . . . Searches Triggered . | . . . . Construction Impeded . | . . . . Haulers Reinforced . | . . . . Active Scanning Responses . | . . . . Cargo Convoy Interrupts . | . . . . Stealth | -11 -10 -10 -8 --------- Run | Yrd Mat Sub Rec Distress Signals . | . . . . Communications Jammed . | . . . . Distress Signals . | . . . . Times Spotted 26 | . . 20 6 Peak Tracking Total 6 | . . 6 5 Tactical Retreats 2 | . . 2 . Traps | -11 -10 -10 -8 ------- Run | Yrd Mat Sub Rec Traps Triggered . | . . . . Indirectly . | . . . . Trap Hack Attempts . | . . . . Triggered . | . . . . Disarmed . | . . . . Reprogrammed . | . . . . Reused . | . . . . Traps Extracted . | . . . . Installed . | . . . . Triggered . | . . . . Machines | -11 -10 -10 -8 ---------- Run | Yrd Mat Sub Rec Machines Disabled 2 | . . 2 . Max in Single Turn 1 | . . 1 . Machines Repaired . | . . . . Machines Dismantled . | . . . . Machines Sabotaged . | . . . . Overloaded Fab Kills . | . . . . Hacking | -11 -10 -10 -8 --------- Run | Yrd Mat Sub Rec Machines Accessed 6 | . . 1 5 Terminals 4 | . . . 4 Fabricators . | . . . . Repair Stations . | . . . . Recycling Units 1 | . . . 1 Scanalyzers . | . . . . Garrison Access . | . . . . Total Hacks 25 | . . 4 21 Successful 9 | . . 4 5 Failed 16 | . . . 16 Catastrophic 5 | . . . 5 Database Lockouts . | . . . . Manual 6 | . . . 6 Terminals 20 | . . . 20 Fabricators . | . . . . Repair Stations . | . . . . Recycling Units 1 | . . . 1 Scanalyzers . | . . . . Garrison Access . | . . . . Terminal Hacks 8 | . . 4 4 Record 4 | . . 4 . Robot Analysis 1 | . . . 1 Prototype ID Bank 1 | . . . 1 Branch Access Points 1 | . . . 1 Terminal Index 1 | . . . 1 Fabricator Hacks . | . . . . Repair Station Hacks . | . . . . Recycling Unit Hacks 1 | . . . 1 Report Inventory 1 | . . . 1 Scanalyzer . | . . . . Garrison Access Hacks . | . . . . Unauthorized Hacks . | . . . . Terminals . | . . . . Fabricators . | . . . . Repair Stations . | . . . . Recycling Units . | . . . . Scanalyzers . | . . . . Garrison Access . | . . . . Data Cores Recovered . | . . . . Used . | . . . . Hacking Detections 4 | . . . 4 Full Trace Events . | . . . . Feedback Events . | . . . . Feedback Blocked . | . . . . Robot Schematics Acquired . | . . . . Robots Built . | . . . . Authchips . | . . . . Time . | . . . . Total Robot Build Rating . | . . . . Part Schematics Acquired . | . . . . Parts Built . | . . . . Authchips . | . . . . Time . | . . . . Total Part Build Rating . | . . . . Part Studies Acquired . | . . . . Parts Repaired . | . . . . Time . | . . . . Parts Recycled . | . . . . Recycled Matter . | . . . . Retrieved Matter . | . . . . Retrieved Components . | . . . . Parts Scanalyzed . | . . . . Part Schematics Acquired . | . . . . Parts Damaged . | . . . . Bothacking | -11 -10 -10 -8 ------------ Run | Yrd Mat Sub Rec Used RIF Installer . | . . . . Robots Hacked . | . . . . Non-combat . | . . . . Combat . | . . . . Robot Hacks Applied . | . . . . Relay Couplers Released . | . . . . Fabnet Peak Effective % . | . . . . Robots Rewired . | . . . . Allies Hacked . | . . . . Hacks Repelled . | . . . . Allies | -11 -10 -10 -8 -------- Run | Yrd Mat Sub Rec Total Allies . | . . . . Largest Group . | . . . . Highest-Rated Group . | . . . . Highest-Rated Ally . | . . . . Total Orders . | . . . . Ally Attacks . | . . . . Total Damage . | . . . . Kills . | . . . . Allies Corrupted . | . . . . Allies Melted . | . . . . Intel | -11 -10 -10 -8 ------- Run | Yrd Mat Sub Rec Active Infowar (turns) 690 | . . 690 . Optics 520 | . . 520 . Machine Analysis 170 | . . 170 . Robot Analysis Total 1 | . . . 1 Derelict Logs Recovered 2 | . . 2 . Drone Launches . | . . . . Drone Recoveries . | . . . . Exploration | -11 -10 -10 -8 ------------- Run | Yrd Mat Sub Rec Turns Passed 2065 | 82 57 1455 471 Spaces Moved 1282 | 47 24 944 267 Core 5 | 5 . . . Treads 614 | 42 24 290 258 Legs . | . . . . Wheels 663 | . . 654 9 Hover . | . . . . Flight . | . . . . Fastest Speed 50 | 50 160 110 110 Average Speed 133 | 148 160 125 158 Slowest Speed 160 | 160 160 160 160 Overloaded Moves . | . . . . Propulsion Burnouts . | . . . . Robots Hopped . | . . . . Potential Cave-ins . | . . . . Cave-ins Triggered . | . . . . Exploration Rate (%) 29 | 4 4 60 51 Regions Visited 3 Branch Regions 2 Pre-discovered Areas . | . . . . Known Exits Taken . | . . . . Unknown Exits Taken 3 | 1 1 1 . Scrap Searched 3 | . . 3 . Spaces Dug . | . . . . Terrain Destroyed 4 | . . . 4 Melee . | . . . . Projectile 4 | . . . 4 AOE . | . . . . Terrain Rammed . | . . . . Walls Destroyed . | . . . . Machines Disabled . | . . . . Actions | -11 -10 -10 -8 --------- Run | Yrd Mat Sub Rec Total 1515 | 57 43 1113 302 Wait 68 | . 20 45 3 Move 1279 | 46 23 943 267 Hop . | . . . . Pick Up 32 | 5 . 23 4 Fast Attach 12 | 5 . 5 2 Attach 9 | 1 . 7 1 Detach 3 | . . 3 . Swap 10 | . . 9 1 Drop 25 | . . 21 4 Fire 64 | . . 56 8 Melee . | . . . . Ram . | . . . . Kick . | . . . . Crush 12 | . . . 12 Escape Stasis . | . . . . Rewire . | . . . . Trap . | . . . . Miscellaneous 1 | . . 1 . Route ------- -11/Scrapyard -10/Materials -10/Subcaves (discovered 3 exits: *Mat x2 / *Rec) -8/Recycling (discovered 1 exit: [*Fac]) History --------- Turn | Location | Event 30 | -11/Scrapyard | Discovered new exit (range 14) 83 | -11/Scrapyard | Entered Materials 84 | -10/Materials | Met a group of wandering Federalists 103 | -10/Materials | Discovered new exit (range 9) 140 | -10/Materials | Entered Subcaves 141 | -10/Subcaves | Continued accompanying wandering Federalists (6) 141 | -10/Subcaves | Approached by a straggling Scientist 164 | -10/Subcaves | Learned Materials interactive machine intel 292 | -10/Subcaves | Core integrity fell below 50% 298 | -10/Subcaves | Lost 7 allies 349 | -10/Subcaves | A swath of the cavern ceiling suddenly collapsed 374 | -10/Subcaves | Build established: Mutant 571 | -10/Subcaves | Discovered new exit (range 20) 925 | -10/Subcaves | Discovered new exit (range 9) 1066 | -10/Subcaves | Visited Clippyterm 1069 | -10/Subcaves | Identified exit to Materials 1069 | -10/Subcaves | Learned Factory garrison access intel 1196 | -10/Subcaves | Learned 2 Materials zone layouts 1208 | -10/Subcaves | Visited 4L-MR0's lab 1224 | -10/Subcaves | Found Prototype Energy Cannon 1320 | -10/Subcaves | Build established: Subdweller-Mutant 1378 | -10/Subcaves | Core integrity fell below 20% 1594 | -10/Subcaves | Identified Powered Cannon 1595 | -10/Subcaves | Attached Powered Cannon, gained temporary slot: Power 1595 | -10/Subcaves | Entered Recycling 1695 | -8/Recycling | Build established: Mutant 2046 | -8/Recycling | Discovered new exit (range 16) 2066 | -8/Recycling | Destroyed by P-60 Hacker with Shock Rifle Last Messages --------------- 01950_ Slammed into R-06 Scavenger. 01955_ Acquired 1 matter. 01985_ Crushed R-06 Scavenger. 01985_ R-06 Scavenger destroyed. 01988_ Acquired Lgt. Ion Engine. 01990_ Dropped Broken Sub. Power Source. 01990_ Acquired 10 matter. 01991_ R-06 Scavenger collects Broken Sub. Power Source. 01992_ Slammed into R-06 Scavenger. 02046_ EXIT=FOUND 02048_ Y-45 Defender springs to life. 02048_ G-47 Trooper springs to life. 02048_ P-60 Hacker springs to life. 02053_ Lgt. Ion Engine destroyed. 02055_ Temporary Power slot lost. 02057_ Slammed into G-47 Trooper. 02058_ Y-45 Defender destroyed. 02058_ Crushed G-47 Trooper. 02058_ G-47 Trooper destroyed. 02061_ Slammed into P-60 Hacker. Map ----- +----------------------------------------------------+ | ??????????????????????# | | ??????????????????????# | | ??????????????????????#######+## | | ????????????????????????????# #? | | ????????????????????????????# #? | | ????????????????????????????# #? | | ????????????????????????????# #? | | ????????????????????????????# #? | | ???????????????????????????## ## | | ???###?????????????????????# # | | ??# ?????????????????????# | | ??# < ?????????????????????# # | | ??# ????????????????????### ## | | ??# ????????????????????#"" ## | | ??# ????????????????????#"Y # | | ??# ????????????????????#"" # | | ??# #???????????????????### # | | ??# #?????????????????????# # | | ### #?????????????????????# # | | #[ #?????????????????????# # | | #[[ ###########??########## # | | ?[ #l h d #??# + # | | ??# #l #??# """ # # | | ??# #su p #??# """ #%# | | ??# %% %% dp#??# """ + # | | ??# %/@p/ d #??# # # | | ??# ; % u #??# """ # ## | | ??# #* k #??# """ + ## | | ??# #!![ u s#??# """ # | | ??# ########+###?# # | | ??# #???????? ?######T### | | ??# ########## ??????##??# | | ??# # ! # ########### | | ??# # ! + | | ??# #! !! ## | | ?## + !! ## | | #!! # ! ! ## """ | | #!! # ! ## """"" ##### | | #!! # ## """"" #???? | | ### # !## """"" #???? | | ??# #!!! ## """%%% #???? | | ??# ########+## % #???? | | ??# #??????# #???? | | ??# #??????# ##########???? | | ??# #??????# #????????????? | | ??# #??????# #????????????? | | ??# #??????# ####????????????? | | ??# #??????# #???????????????? | | ??# #??????# #???????????????? | | ??# #??????# #???????????????? | +----------------------------------------------------+ Best States ------------- Heat Dissipation 25 Energy Generation 15 Energy Capacity 250 Matter Stores 300 Matter Capacity 300 Sight Range 21 Terrain Scan Density 10 Armor Coverage 800 Evasion (%) 40 Recoil Reduction 2 Defensive Hacking 11 Item Schematics ----------------- None Robot Schematics ------------------ None Fabricated ------------ Nothing Repaired ---------- Nothing Studied --------- None Alien Tech Used ----------------- None Achievements -------------- None Challenges ------------ None Game ------ Seed HeartDirectedSuperbattery Manual? 0 Play Time 00:26:22 Cumulative 63.0 hours Start 2026.02.03 @ 21:37:38 End 2026.02.03 @ 22:01:21 Sessions 1 Manual Loads 0 Difficulty Rogue Special Mode None Game No. 44 Rogue 44 Adventurer 0 Explorer 0 Win Type - Total 3 Types 3/0/0/0/0/0/0/0/0/0 Lore% 26 Gallery% 40 Achievement% 28 Wizard Run 0 Options --------- Layout 0 ASCII 0 Keyboard 0 Movement Numpad Keybinds 0 Fullscreen 2 Font 24/Terminus Map View 76x50 Zoom Use 0% Tactical HUD 1 Map Filters NONE Filters NONE Steam 1 RUN: 5af55dcd-396a-4a46-92ae-38ac427e580c